bitfinex/quotes_ETHUSD_20250220
["timestamp","ask_amount","ask_price","bid_price","bid_amount"]
[1740064989052,3.66195,2730.8,2730.2,7.32535]
[1740064989221,3.66195,2730.8,2730.0,3.66298]
[1740064989421,3.66215,2730.7,2730.0,3.66298]
[1740064989661,4.39461,2730.6,2730.0,3.66298]
[1740064989861,0.73241,2730.6,2730.0,3.66298]
[1740064990366,0.8031,2730.9,2729.8,11.11263243]
[1740064990667,3.66201,2730.8,2730.0,3.66291]
[1740064990870,0.8079,2730.5,2729.9,6.66307]
[1740064991072,0.8079,2730.5,2730.1,3.66285]
[1740064991432,0.8079,2730.5,2730.1,7.32563]
[1740064991676,0.8079,2730.5,2730.1,3.66278]
[1740064992365,0.8079,2730.5,2729.9,3.66312]
[1740064992580,4.47023,2730.5,2730.0,3.66298]
[1740064992786,5.283482,2730.5,2730.0,3.66298]
[1740064992980,1.621152,2730.5,2730.0,7.32588]
[1740064993166,1.621152,2730.5,2730.1,3.66274]
[1740064993482,1.621152,2730.5,2729.7,4.77527013]
[1740064993483,0.8205,2730.9,2730.6,3.66213]
[1740064993933,0.8205,2730.9,2730.4,3.66235]
[1740064994131,0.8205,2730.9,2730.8,3.66193]
[1740064994330,0.8205,2730.9,2730.0,10.989]
[1740064994331,0.8205,2730.9,2730.4,3.66242]
[1740064994845,0.8205,2730.9,2730.4,7.32481]
[1740064995050,1.268718,2730.9,2730.2,3.66268]
[1740064995249,3.66216,2730.7,2730.1,3.66282]
[1740064995864,3.66227,2730.6,2730.0,3.66287]
[1740064996041,0.7926,2730.5,2730.0,3.66287]
[1740064996237,0.7926,2730.5,2730.2,3.6627]
[1740064996832,0.7926,2730.5,2729.8,3.66324]
[1740064996833,3.6626,2730.3,2729.8,3.66327]
[1740064997149,0.44552,2730.3,2729.8,3.66319]
[1740064997486,4.1082,2730.3,2729.8,3.66319]
[1740064997713,0.44552,2730.3,2729.8,3.66319]
[1740064997911,0.7926,2730.5,2729.9,3.66301]
[1740064998067,0.7926,2730.5,2730.1,3.66273]
[1740064998394,3.66261,2730.3,2729.7,3.66328]
[1740064998698,4.45502,2730.5,2729.9,3.66307]
[1740064999070,3.66263,2730.3,2729.8,3.66325]
[1740064999268,0.7895,2730.1,2729.5,5.24]
[1740064999595,0.27987455,2730.7,2729.2,3.66398]
[1740064999596,0.7895,2729.7,2729.2,3.66398]
[1740065000805,0.7895,2729.7,2729.4,3.66373]
[1740065001002,0.7895,2729.7,2729.5,3.66362]
[1740065001207,6.0234,2730.0,2729.6,3.66354]
[1740065001357,6.992022,2730.0,2729.5,3.66363]
[1740065001556,6.992022,2730.0,2729.7,3.66335]
[1740065001753,6.992022,2730.0,2729.5,3.66359]
[1740065001984,6.992022,2730.0,2729.2,3.66407]
[1740065002300,6.0234,2730.0,2729.5,3.66359]
[1740065002521,3.66316,2729.9,2729.4,3.66376]
[1740065002801,0.8279,2729.8,2729.2,3.66406]
[1740065003103,0.8279,2729.8,2729.4,3.6637]
[1740065003595,0.8279,2729.8,2729.3,3.66387]
[1740065003857,1.802005,2729.8,2729.3,3.66387]
[1740065004009,3.66349,2729.7,2729.1,3.66419]
[1740065004213,3.66349,2729.7,2729.1,3.66413]
[1740065004369,3.66357,2729.6,2729.1,3.66413]
[1740065004570,3.66357,2729.6,2729.1,7.32826]
[1740065004770,3.66357,2729.6,2729.2,3.66407]
[1740065004990,5.465285,2729.8,2729.2,7.32814]
[1740065005184,0.5465285,2729.7,2728.8,3.72628014]
[1740065005384,0.5465285,2729.7,2729.1,3.66418]
[1740065005385,3.66363,2729.6,2729.1,3.66418]
[1740065005590,3.66356,2729.6,2729.1,3.66418]
[1740065006125,7.32718,2729.6,2729.0,3.66422]
[1740065006423,0.78737085,2729.5,2729.0,3.66427]
[1740065006716,0.78737085,2729.5,2728.9,3.66448]
[1740065007015,0.78737085,2729.5,2729.1,3.66416]
[1740065007214,0.78737085,2729.5,2729.0,3.66422]
[1740065007417,0.5465285,2729.7,2729.0,3.66422]
[1740065007584,0.5465285,2729.7,2729.2,3.66407]
[1740065007791,4.2099485,2729.7,2729.2,3.66407]
[1740065007993,4.2099485,2729.7,2728.4,6.0265]
[1740065007994,3.66415,2729.2,2728.4,6.0265]
[1740065008171,3.66494,2728.6,2728.1,3.66548]
[1740065008374,4.46986,2728.7,2728.1,3.66546]
[1740065008688,0.8051,2728.7,2727.9,3.6657]
[1740065008889,0.8217,2728.3,2727.7,7.33198]
[1740065009120,0.8217,2728.3,2727.7,3.66597]
[1740065009298,1.270393,2728.3,2727.6,5.24]
[1740065009622,1.270393,2728.3,2727.9,3.66576]
[1740065009828,3.66563,2728.1,2727.6,3.66622]
[1740065009973,4.48953,2728.2,2727.6,3.66622]
[1740065010188,0.8241,2728.2,2727.1,0.1517811]
[1740065010448,0.8241,2728.2,2727.1,3.8185611]
[1740065010449,3.66613,2727.7,2727.1,3.8185611]
[1740065010590,0.8241,2727.8,2727.7,3.66609]
[1740065010933,0.8241,2728.1,2727.9,3.66582]
[1740065011349,0.8241,2728.1,2727.9,3.66574]
[1740065011506,0.8241,2728.1,2727.9,7.33147]
[1740065011839,0.8241,2728.1,2728.0,3.66568]
[1740065012041,0.8308,2728.4,2727.8,3.66592]
[1740065012241,0.8308,2728.3,2727.8,3.66592]
[1740065012691,0.8308,2728.3,2727.6,3.66618]
[1740065012692,0.8308,2728.3,2727.3,3.89943243]
[1740065012892,0.8308,2728.3,2727.9,3.66572]
[1740065013434,0.8308,2728.3,2727.6,3.6662]
[1740065013641,0.8225,2728.0,2727.5,3.66631]
[1740065013791,0.8225,2728.0,2727.5,3.66627]
[1740065014243,0.8225,2728.0,2727.7,3.666]
[1740065014597,0.8225,2728.0,2727.9,3.66582]
[1740065015407,0.8294,2728.3,2728.0,3.6656]
[1740065015612,0.8294,2728.3,2727.3,3.89943243]
[1740065015901,0.8294,2728.3,2728.2,3.66542]
[1740065016237,0.8294,2728.3,2728.1,3.66554]
[1740065016436,0.8294,2728.3,2728.2,3.66542]
[1740065017110,5.25,2728.4,2728.3,3.66528]
[1740065017435,0.8319,2728.7,2728.5,3.66501]
[1740065018225,0.8208,2729.0,2728.8,3.66452]
[1740065018431,0.8208,2729.0,2728.6,3.6648]
[1740065018640,0.8208,2729.0,2728.7,3.66467]
[1740065018877,0.8208,2729.0,2728.8,3.6646]
[1740065019008,0.8208,2729.0,2728.9,3.66448]
[1740065019210,0.8257,2729.3,2728.9,3.66448]
[1740065019936,1.799653,2729.3,2728.8,3.66453]
[1740065020170,1.799653,2729.3,2728.9,3.66443]
[1740065020300,1.799653,2729.3,2728.8,3.66453]
[1740065020666,1.799653,2729.3,2728.9,3.66445]
[1740065020872,0.8069,2729.2,2727.9,3.66569]
[1740065020998,3.66522,2728.4,2727.9,3.66569]
[1740065021198,0.8069,2728.3,2727.9,3.66569]
[1740065021439,0.8069,2728.3,2728.0,3.66567]
[1740065022027,0.8069,2728.3,2728.2,3.66542]
[1740065022229,0.8069,2728.3,2728.0,3.66567]
[1740065022765,0.8069,2728.3,2728.2,3.66542]
[1740065022925,0.7629,2728.7,2728.2,3.66533]
[1740065023126,1.730648,2728.7,2728.2,3.66533]
[1740065023322,5.395408,2728.7,2728.2,3.66533]
[1740065023572,3.66489,2728.6,2728.0,3.66555]
[1740065024076,0.7629,2728.1,2727.6,3.66615]
[1740065024233,0.7629,2728.1,2727.8,3.6659]
[1740065024429,0.7629,2728.1,2727.9,3.66569]
[1740065024630,0.7629,2728.1,2728.0,3.66568]
[1740065025072,8.91494,2728.6,2728.2,3.66533]
[1740065025073,0.7862,2728.5,2728.2,3.66533]
[1740065025238,1.4865948,2728.5,2728.1,3.66552]
[1740065026130,1.4865948,2728.5,2728.2,3.66529]
[1740065026330,1.4865948,2728.5,2728.0,3.66561]
[1740065026664,1.4865948,2728.5,2728.1,3.66552]
[1740065026829,1.4865948,2728.5,2728.2,3.66532]
[1740065027331,1.4865948,2728.5,2728.2,3.66538]
[1740065027531,3.66441,2729.0,2728.4,3.66515]
[1740065027757,3.6646,2728.9,2728.4,3.66515]
[1740065027962,3.66436,2729.0,2728.4,3.66515]
[1740065028157,3.66457,2728.9,2728.4,3.66515]
[1740065028466,4.46541,2729.1,2728.6,3.66485]
[1740065028670,0.8012,2729.1,2728.6,3.66485]
[1740065028831,0.8012,2729.1,2728.7,3.66465]
[1740065029033,0.8012,2729.1,2729.0,3.66434]
[1740065029248,0.55,2729.2,2729.0,3.66434]
[1740065029432,0.55,2729.2,2729.0,3.66425]
[1740065029662,0.55,2729.2,2729.1,3.66421]
[1740065029868,0.55,2729.2,2729.1,4.397056]
[1740065030236,0.55,2729.2,2729.1,3.66421]
[1740065030875,0.55,2729.2,2729.0,3.66425]
[1740065031152,0.55,2729.2,2728.9,3.66445]
[1740065031378,0.55,2729.2,2728.2,0.8133]
[1740065031546,0.55,2729.2,2728.4,3.66507]
[1740065031747,4.43829,2728.9,2728.4,3.66507]
[1740065032162,0.7738,2728.9,2728.4,3.66507]
[1740065032484,0.7738,2728.9,2728.6,3.66487]
[1740065032778,0.7738,2728.9,2728.6,7.32966]
[1740065032961,0.7738,2728.9,2728.6,3.66479]
[1740065033136,1.275601,2728.9,2728.5,3.66499]
[1740065033570,0.7738,2728.9,2728.6,3.66487]
[1740065033834,0.7738,2728.9,2728.4,3.66509]
[1740065034244,4.4383,2728.9,2728.4,3.66509]
[1740065034446,4.4383,2728.9,2728.3,3.66526]
[1740065034680,0.7738,2728.9,2728.4,3.66506]
[1740065034886,1.275605,2728.9,2728.6,3.66486]
[1740065035049,1.275605,2728.9,2728.4,3.66506]
[1740065035237,1.275605,2728.9,2728.5,3.66496]
[1740065035693,0.7738,2728.9,2728.6,3.66485]
[1740065035877,0.7738,2728.9,2728.0,0.74039551]
[1740065035878,1.3563,2729.2,2729.0,3.66425]
[1740065036080,1.3563,2729.2,2728.8,3.66448]
[1740065036379,5.02045,2729.2,2728.6,3.66478]
[1740065036541,2.74973,2729.2,2728.4,4.46274]
[1740065036736,1.3563,2729.2,2728.4,4.46274]
[1740065036936,1.3563,2729.2,2728.8,3.66451]
[1740065037139,1.3563,2729.2,2728.8,7.32902]
[1740065037339,1.3563,2729.2,2728.8,3.66451]
[1740065037599,3.66436,2729.0,2728.1,6.0258]
[1740065037893,0.366436,2728.9,2728.6,3.66483]
[1740065038176,0.366436,2728.9,2728.4,3.66503]
[1740065038481,0.366436,2728.9,2728.5,3.66499]
[1740065038676,0.366436,2728.9,2728.4,3.66503]
[1740065039098,4.030926,2728.9,2728.4,7.33011]
[1740065039264,4.030926,2728.9,2728.4,3.66503]
[1740065039689,0.366436,2728.9,2728.4,3.66503]
[1740065039860,4.030926,2728.9,2728.4,3.66503]
[1740065040189,0.7548,2728.7,2728.1,6.0258]
[1740065040342,3.66513,2728.5,2727.8,3.66585]
[1740065040550,4.42575,2728.4,2727.9,3.66581]
[1740065041141,0.7606,2728.4,2727.6,0.74683284]
[1740065041501,0.7606,2728.4,2728.0,3.66559]
[1740065041673,0.7606,2728.4,2727.6,1.19802612]
[1740065041867,0.7606,2728.4,2727.6,4.19802612]
[1740065042073,0.7606,2728.4,2728.1,7.33093]
[1740065042285,0.7606,2728.4,2728.1,3.66545]
[1740065042846,0.7606,2728.4,2727.9,3.66572]
[1740065043185,5.75984,2728.4,2727.9,3.66572]
[1740065043385,2.09466,2728.4,2728.0,3.66568]
[1740065043791,2.09466,2728.4,2727.9,3.66572]
[1740065043981,0.7606,2728.4,2728.0,3.66564]
[1740065044287,0.7606,2728.4,2728.0,3.66568]
[1740065044488,5.25,2728.6,2728.3,3.66528]
[1740065044860,5.25,2728.6,2728.0,3.66559]
[1740065045060,8.91496,2728.6,2728.1,3.66555]
[1740065045387,1.340492,2728.5,2728.1,3.66555]
[1740065045586,5.005522,2728.5,2728.0,3.76479]
[1740065045760,1.340492,2728.5,2728.1,3.66551]
[1740065046167,1.340492,2728.5,2728.0,0.0992]
[1740065046168,5.005582,2728.5,2728.0,0.0992]
[1740065046368,1.340492,2728.5,2728.1,3.66542]
[1740065046990,0.7533,2728.3,2728.0,0.0992]
[1740065047169,3.66542,2728.2,2728.0,0.0992]
[1740065047495,0.7922,2728.1,2728.0,0.0992]
[1740065047695,4.903512,2728.1,2728.0,0.0992]
[1740065047901,10.153512,2728.1,2728.0,0.0992]
[1740065048102,14.05294443,2728.1,2728.0,0.0992]
[1740065048259,3.66665,2727.3,2727.1,0.1517811]
[1740065048459,1.177565,2727.2,2727.1,0.1517811]
[1740065048665,0.8109,2727.2,2727.1,0.1517811]
[1740065049189,4.47766,2727.2,2727.1,0.1517811]
[1740065049371,0.8109,2727.2,2727.1,0.1517811]
[1740065050111,6.0562,2727.5,2727.1,3.8186711]
[1740065050403,6.0562,2727.5,2727.3,3.66661]
[1740065050573,6.0562,2727.5,2727.1,3.8185511]
[1740065051057,6.0562,2727.5,2727.3,3.66662]
[1740065051255,6.0562,2727.5,2727.1,3.8185511]
[1740065051670,6.0562,2727.5,2727.2,3.66666]
[1740065051887,6.0562,2727.5,2727.1,3.8185511]
[1740065052364,6.0562,2727.5,2727.1,0.1517811]
[1740065052563,7.028444,2727.5,2727.1,0.1517811]
[1740065052762,3.6665,2727.4,2727.1,0.1517811]
[1740065052963,7.028444,2727.5,2727.1,0.1517811]
[1740065053287,10.694814,2727.5,2727.1,0.1517811]
[1740065053788,7.028444,2727.5,2727.1,3.8186011]
[1740065053984,0.8062,2727.5,2727.1,3.8186011]
[1740065054186,0.8062,2727.5,2727.3,3.66652]
[1740065054501,0.7517,2727.8,2727.2,7.33335]
[1740065054797,4.41767,2727.8,2727.3,3.66657]
[1740065055100,4.41767,2727.8,2727.2,3.66666]
[1740065055101,4.632927,2727.7,2727.2,3.66666]
[1740065055407,0.7517,2727.5,2727.1,0.1517811]
[1740065055705,3.66663,2727.3,2727.1,0.1517811]
[1740065055892,0.7852,2727.4,2727.1,0.1517811]
[1740065056092,3.66673,2727.3,2727.1,0.1517811]
[1740065056269,4.47861,2727.2,2727.1,0.1517811]
[1740065056607,0.81185,2727.2,2727.1,0.1517811]
[1740065056909,0.7852,2727.4,2727.1,0.1517811]
[1740065057113,5.25,2727.5,2727.2,3.66676]
[1740065057411,5.25,2727.5,2727.4,3.66649]
[1740065057582,0.27021074,2728.0,2727.4,3.66639]
[1740065057583,0.7663,2727.9,2727.4,3.66639]
[1740065057909,1.4125062,2727.9,2727.3,3.66663]
[1740065058212,0.7663,2727.9,2727.7,3.66607]
[1740065058413,3.66548,2728.2,2727.9,3.66582]
[1740065058414,0.8071,2728.2,2727.9,3.66582]
[1740065058564,0.8071,2728.2,2727.8,7.3318]
[1740065058765,0.8071,2728.2,2727.8,3.66586]
[1740065058965,0.8071,2728.2,2727.6,3.66609]
[1740065059166,6.504349,2728.2,2727.6,3.66609]
[1740065059396,6.504349,2728.2,2727.4,3.66644]
[1740065059579,10.169799,2728.2,2727.2,4.44636]
[1740065059792,10.169799,2728.2,2727.2,3.66666]
[1740065059793,0.8071,2727.7,2727.2,3.66666]
[1740065059980,0.8071,2727.7,2727.2,7.33334]
[1740065060167,0.8071,2727.7,2727.2,3.66666]
[1740065060378,0.8071,2727.7,2727.5,3.66625]
[1740065060577,5.25,2728.2,2727.5,0.73328]
[1740065060833,8.91549,2728.2,2727.7,3.66608]
[1740065061014,5.25,2728.2,2727.8,3.66595]
[1740065061821,5.25,2728.2,2727.6,3.66609]
[1740065062121,8.91543,2728.2,2727.6,3.66609]
[1740065062426,8.91543,2728.2,2727.6,7.33224]
[1740065062822,3.66574,2728.0,2727.1,0.1517811]
[1740065063123,4.45021,2728.1,2727.6,3.66615]
[1740065063419,0.7846,2728.1,2727.4,3.6664]
[1740065063620,0.7846,2728.1,2727.4,0.36664]
[1740065063824,0.7846,2728.1,2727.8,3.66594]
[1740065064230,5.25,2728.2,2727.4,4.65133243]
[1740065064527,0.8181,2727.7,2727.3,3.66654]
[1740065064682,0.8181,2727.7,2727.4,3.66647]
[1740065064883,0.7537,2728.0,2727.6,3.66622]
[1740065065083,1.720622,2728.0,2727.2,3.0]
[1740065065313,3.66582,2727.9,2727.1,0.1517811]
[1740065065520,3.66651,2727.4,2727.1,0.1517811]
[1740065065884,0.7884,2727.3,2727.1,0.1517811]
[1740065066815,3.66676,2727.2,2727.1,0.1517811]
[1740065067001,4.47894,2727.2,2727.1,0.1517811]
[1740065067400,0.7884,2727.3,2727.1,0.1517811]
[1740065068328,8.12312,2727.6,2727.1,3.8186511]
[1740065068531,0.7905,2727.6,2727.1,0.1517811]
[1740065068733,5.25,2727.8,2727.3,0.8121]
[1740065069051,8.91597,2727.8,2727.3,0.8121]
[1740065069243,6.3173392,2727.8,2727.2,3.66664]
[1740065069404,5.25,2727.8,2727.2,3.66664]
[1740065069741,3.66626,2727.6,2727.1,0.1517811]
[1740065069942,5.25,2727.8,2727.1,0.1517811]
[1740065070108,3.66609,2727.7,2727.1,0.1517811]
[1740065070308,3.66612,2727.7,2727.2,3.66676]
[1740065070508,5.25,2727.9,2727.1,0.1517811]
[1740065070842,0.60405,2727.8,2727.3,3.66661]
[1740065071042,0.60405,2727.8,2727.1,3.8186011]
[1740065071346,4.2701,2727.8,2727.2,3.66676]
[1740065071521,3.66616,2727.7,2727.2,3.66676]
[1740065071721,4.2701,2727.8,2727.2,3.66675]
[1740065071923,3.66629,2727.6,2727.1,3.8186311]
[1740065072221,4.49181,2727.4,2727.1,0.1517811]
[1740065072421,3.66666,2727.3,2727.1,0.1517811]
[1740065072638,3.66676,2727.2,2727.1,0.1517811]
[1740065072839,3.66666,2727.3,2727.1,0.1517811]
[1740065073040,3.66676,2727.2,2727.1,0.1517811]
[1740065073661,4.49189,2727.4,2727.1,0.1517811]
[1740065073816,1.340834,2727.3,2727.1,0.1517811]
[1740065074233,5.25,2727.5,2727.2,3.66667]
[1740065074554,5.25,2727.5,2727.2,7.33336]
[1740065074858,5.25,2727.5,2727.1,0.1517811]
[1740065074860,5.25,2727.5,2727.3,7.33313]
[1740065075159,5.25,2727.5,2727.4,3.66649]
[1740065075327,5.25,2727.5,2727.4,4.033139]
[1740065076057,3.66535,2728.3,2727.8,3.66591]
[1740065076234,8.91521,2728.4,2727.7,3.66599]
[1740065076431,3.6653,2728.3,2727.8,3.66586]
[1740065076630,8.91519,2728.4,2727.9,3.6658]
[1740065076834,8.91519,2728.4,2727.5,0.7622]
[1740065077118,8.91519,2728.4,2727.7,7.33198]
[1740065077458,5.25,2728.4,2727.8,3.66582]
[1740065077618,5.25,2728.4,2727.6,0.18603628]
[1740065077820,8.91523,2728.4,2727.9,3.66576]
[1740065078355,5.25,2728.4,2727.7,3.666]
[1740065078556,3.66545,2728.2,2727.7,3.666]
[1740065079106,3.66558,2728.1,2727.6,3.66618]
[1740065079262,3.66545,2728.2,2727.7,3.66606]
[1740065079761,3.66545,2728.2,2727.5,3.66631]
[1740065079969,3.6655,2728.2,2727.5,3.66631]
[1740065080272,3.6658,2728.0,2727.4,3.0]
[1740065080471,3.66596,2727.8,2727.4,3.0]
[1740065080759,3.66631,2727.6,2727.2,5.24]
[1740065080942,3.66638,2727.5,2727.1,0.1517811]
[1740065081465,0.7689,2727.7,2727.1,3.8186411]
[1740065081756,3.66622,2727.6,2727.1,0.1517811]
[1740065082055,4.109992,2727.5,2727.1,0.1517811]
[1740065082261,3.66656,2727.4,2727.1,0.1517811]
[1740065082564,3.66658,2727.4,2727.1,0.1517811]
[1740065082945,4.42464,2727.3,2727.1,0.1517811]
[1740065083256,0.758,2727.3,2727.1,0.1517811]
[1740065083465,4.109217,2727.2,2727.1,0.1517811]
[1740065084078,3.66676,2727.2,2727.1,0.1517811]
[1740065086746,0.758,2727.3,2727.1,0.1517811]
[1740065086948,3.6665,2727.4,2727.1,0.1517811]
[1740065087360,7.33288,2727.5,2727.1,0.1517811]
[1740065087570,3.66651,2727.4,2727.1,0.1517811]
[1740065087772,3.66642,2727.5,2727.1,0.1517811]
[1740065088091,3.66657,2727.4,2727.1,0.1517811]
[1740065088237,3.66656,2727.4,2727.1,0.1517811]
[1740065088637,7.33317,2727.4,2727.1,0.1517811]
[1740065088865,3.89943243,2728.6,2727.3,3.66661]
[1740065089179,0.8216,2727.9,2727.5,3.66627]
[1740065089470,3.66602,2727.8,2727.3,3.66655]
[1740065089674,3.66614,2727.7,2727.2,4.48245]
[1740065089879,3.66608,2727.8,2727.3,3.66662]
[1740065090278,2.1619,2727.9,2727.3,3.66662]
[1740065090495,3.66601,2727.8,2727.3,3.66661]
[1740065090655,3.66605,2727.8,2727.2,0.8157]
[1740065090855,0.8216,2727.9,2727.2,0.8157]
[1740065091084,3.66597,2727.8,2727.3,3.66656]
[1740065091286,0.8216,2727.9,2727.4,3.66638]
[1740065091457,0.8216,2727.9,2727.3,0.90473829]
[1740065091651,8.14136,2728.2,2727.7,3.66602]
[1740065091870,8.1414,2728.2,2727.7,3.66602]
[1740065092199,0.8104,2728.2,2727.8,3.66588]
[1740065092350,4.47583,2728.2,2727.7,3.66607]
[1740065092550,3.66568,2728.1,2727.5,3.66626]
[1740065092753,3.66568,2728.1,2727.5,7.33252]
[1740065092997,3.66568,2728.1,2727.6,3.66622]
[1740065093166,3.66568,2728.1,2727.5,3.66626]
[1740065093553,3.66568,2728.1,2727.6,3.66621]
[1740065093754,0.8104,2728.2,2727.7,3.66596]
[1740065093979,4.47593,2728.2,2727.7,3.66596]
[1740065094291,0.8104,2728.2,2727.7,3.66598]
[1740065094593,3.66565,2728.1,2727.5,3.66636]
[1740065094800,3.6658,2728.0,2727.3,3.66656]
[1740065094970,3.66589,2727.9,2727.2,3.8157]
[1740065095293,3.66602,2727.8,2727.3,3.66652]
[1740065095494,0.8104,2728.2,2727.3,0.73940532]
[1740065095682,3.66579,2728.0,2727.4,3.6664]
[1740065095889,3.66579,2728.0,2727.5,3.66634]
[1740065096256,3.66555,2728.1,2727.6,3.66619]
[1740065096697,3.66555,2728.1,2727.5,3.66634]
[1740065097004,3.66579,2728.0,2727.5,3.66634]
[1740065097695,3.66555,2728.1,2727.5,3.66629]
[1740065097922,0.8104,2728.2,2727.7,3.66602]
[1740065098127,4.47592,2728.2,2727.7,3.66602]
[1740065098488,4.47592,2728.2,2727.5,0.80722253]
[1740065098489,4.47592,2728.2,2727.5,4.47356253]
[1740065098817,4.47592,2728.2,2727.7,3.66597]
[1740065099019,0.8104,2728.2,2727.8,3.66585]
[1740065099321,0.779,2728.5,2728.1,3.66545]
[1740065099689,6.029,2728.8,2728.4,3.66506]
[1740065099916,0.55,2728.9,2728.4,3.66508]
[1740065100133,0.55,2728.9,2728.8,3.66461]
[1740065100280,0.55,2728.9,2728.7,4.45056]
[1740065100489,0.55,2728.9,2728.8,3.66461]
[1740065100842,0.55,2728.9,2728.8,4.476127]
[1740065101128,0.55,2728.9,2728.8,11.92555943]
[1740065101339,0.55,2728.9,2728.8,12.64311011]
[1740065102316,5.25,2730.6,2729.3,0.7644]
[1740065102487,3.66238,2730.5,2729.5,3.55]
[1740065102687,3.66252,2730.4,2729.7,3.66328]
[1740065103224,3.66219,2730.6,2729.6,0.55]
[1740065103389,0.78,2730.7,2730.0,3.663]
[1740065103590,4.44216,2730.7,2730.0,3.66292]
[1740065103798,4.4421,2730.7,2730.0,3.66292]
[1740065104002,3.66221,2730.6,2730.0,3.66292]
[1740065104202,3.66235,2730.5,2730.0,3.66292]
[1740065104406,0.810456,2730.5,2730.0,3.66291]
[1740065104614,3.66262,2730.3,2729.7,0.355]
[1740065104930,3.66249,2730.4,2729.4,3.89943243]
[1740065105089,3.66261,2730.3,2729.7,3.66339]
[1740065105288,3.66247,2730.4,2729.8,3.66324]
[1740065105502,3.66247,2730.4,2729.7,4.38157948]
[1740065105704,8.91225,2730.6,2729.8,0.43815795]
[1740065105936,3.66247,2730.4,2729.9,3.66303]
[1740065106544,3.66247,2730.4,2729.7,4.38148948]
[1740065106930,0.55580526,2730.8,2729.9,4.41741]
[1740065107231,3.66234,2730.5,2729.9,4.41741]
[1740065107732,3.66141,2731.2,2730.3,3.66248]
[1740065107907,3.66163,2731.1,2730.4,3.66234]
[1740065108106,3.66141,2731.2,2730.6,3.66211]
[1740065108417,3.66189,2730.9,2730.3,3.66258]
[1740065108609,3.66189,2730.9,2730.3,7.32516]
[1740065108810,3.6616,2731.1,2730.4,3.66246]
[1740065109235,0.7804,2731.3,2730.3,5.70945507]
[1740065109437,3.66236,2730.5,2729.9,0.7544]
[1740065109806,0.8031,2730.7,2729.9,5.38559342]
[1740065110012,5.25,2730.9,2730.3,3.66259]
[1740065110366,3.66222,2730.6,2730.1,3.66279]
[1740065110516,3.66222,2730.6,2730.0,6.66298]
[1740065110715,7.32449,2730.6,2730.0,8.23414234]
[1740065110926,5.25,2730.9,2730.0,4.57116234]
[1740065111138,3.66232,2730.6,2730.0,5.23408234]
[1740065111343,3.66286,2730.2,2729.6,3.66346]
[1740065111543,3.66209,2730.7,2729.4,3.66372]
[1740065111544,0.7819,2730.4,2729.4,0.74198777]
[1740065111728,4.44438,2730.4,2729.8,3.66317]
[1740065112050,5.25,2730.6,2729.9,4.48432]
[1740065112238,5.25,2730.6,2730.1,3.66286]
[1740065112440,5.25,2730.6,2730.1,3.66279]
[1740065112655,8.91228,2730.6,2730.1,3.66279]
[1740065112856,3.66235,2730.5,2729.9,5.299136]
[1740065113054,3.6626,2730.3,2729.6,4.48634]
[1740065113261,3.66271,2730.3,2729.8,3.66317]
[1740065113458,3.66248,2730.4,2729.9,3.66311]
[1740065113644,12.57453,2730.6,2730.0,3.66294]
[1740065113841,8.91225,2730.6,2729.9,3.66311]
[1740065114048,3.66255,2730.4,2729.9,3.66311]
[1740065114255,5.25,2730.6,2729.7,4.111994]
[1740065114557,3.66242,2730.5,2729.7,3.66336]
[1740065114767,3.6626,2730.3,2729.7,3.66336]
[1740065114946,3.6626,2730.3,2729.7,7.32668]
[1740065115146,3.6626,2730.3,2729.7,3.66332]
[1740065115562,3.66275,2730.2,2729.7,3.66332]
[1740065115733,3.66308,2730.0,2729.4,4.40566777]
[1740065115934,0.7756,2730.2,2729.3,0.8215]
[1740065116138,3.66349,2729.7,2729.2,3.66407]
[1740065116365,3.66317,2729.9,2729.3,3.0]
[1740065116563,9.68838,2730.2,2729.6,3.66345]
[1740065116864,3.66293,2730.1,2729.4,3.66371]
[1740065117065,3.66309,2730.0,2729.4,4.030081]
[1740065117265,6.0256,2730.2,2729.6,3.66346]
[1740065117627,3.66287,2730.1,2729.6,3.66346]
[1740065117971,5.25,2730.2,2729.7,3.6633]
[1740065118342,5.25,2730.2,2729.9,3.66301]
[1740065118546,3.66253,2730.4,2729.9,4.395642]
[1740065118852,5.25,2730.9,2730.1,3.66286]
[1740065119037,3.66217,2730.7,2730.1,3.66286]
[1740065119245,3.66221,2730.6,2730.1,3.66286]
[1740065119427,3.66221,2730.6,2730.1,3.66277]
[1740065119630,3.66241,2730.5,2729.9,7.32612]
[1740065119863,3.66277,2730.2,2729.7,4.40572807]
[1740065120170,3.66288,2730.1,2729.5,4.47628]
[1740065120498,4.4852,2730.3,2729.6,0.73509182]
[1740065120627,0.8226,2730.3,2729.5,0.8127]
[1740065120832,3.66334,2729.8,2729.4,3.0]
[1740065121027,3.66349,2729.7,2729.4,1.268878]
[1740065121327,0.8044,2729.7,2728.6,6.30307296]
[1740065121563,3.66367,2729.6,2729.1,3.66412]
[1740065121878,3.66321,2729.9,2729.3,3.66383]
[1740065122045,3.66313,2729.9,2729.3,7.32769]
[1740065122231,3.66313,2729.9,2729.3,4.479909]
[1740065122431,3.66329,2729.8,2729.3,4.479909]
[1740065122631,9.70062,2730.0,2729.4,3.6638]
[1740065122875,9.70062,2730.0,2729.5,3.66358]
[1740065123075,9.70062,2730.0,2729.3,0.816079]
[1740065123076,9.70062,2730.0,2729.3,4.479929]
[1740065123277,3.66334,2729.8,2729.3,4.479929]
[1740065123574,9.70067,2730.0,2729.3,0.816079]